fUSD/lending_fUSD_20260512
["ID","MTS","AMOUNT","RATE_DAILY","PERIOD"]
[422076449,1778553032000,-528.94,0.00016451,2]
[422076450,1778553032000,-500.0,0.00016513,2]
[422076451,1778553032000,-275.03,0.00016524,2]
[422076452,1778553032000,-2000.0,0.00016524,2]
[422076453,1778553032000,-29352.80001687,0.00016524,2]
[422076456,1778553032000,-162.87,0.00016533,2]
[422076457,1778553032000,-150.01,0.00016603,2]
[422076459,1778553032000,-175.42,0.00016712,2]
[422076458,1778553032000,-152.49,0.00016624,2]
[422076455,1778553032000,-635.29,0.00016525,2]
[422076442,1778553032000,-300.0,0.00016,2]
[422076439,1778553032000,-12191.05,0.0001584,2]
[422076427,1778553032000,-72321.72080587,0.00013528,2]
[422076440,1778553032000,-595.38479004,0.00015846,2]
[422076422,1778553032000,-1531.879338,0.0001346,2]
[422076423,1778553032000,-300.0,0.00013527,2]
[422076425,1778553032000,-150.0,0.00013527,2]
[422076424,1778553032000,-1200.0,0.00013527,2]
[422076426,1778553032000,-97907.82157529,0.00013528,2]
[422076429,1778553032000,-178.17744733,0.00014,2]
[422076428,1778553032000,-419.75329,0.00013528,2]
[422076431,1778553032000,-255.0,0.00014636,2]
[422076430,1778553032000,-162.87,0.00014152,2]
[422076460,1778553032000,-2500.0,0.00016776,2]
[422076432,1778553032000,-162.87,0.00014747,2]
[422076435,1778553032000,-1680.0,0.0001488,2]
[422076436,1778553032000,-162.87,0.00015343,2]
[422076433,1778553032000,-252.79727368,0.00014806,2]
[422076434,1778553032000,-420.0,0.00014827,2]
[422076438,1778553032000,-4907.47,0.0001584,2]
[422076437,1778553032000,-163.34,0.00015343,2]
[422076441,1778553032000,-162.87,0.00015938,2]
[422076472,1778553032000,-500.0,0.00017264,2]
[422076448,1778553032000,-516.5,0.00016438,2]
[422076471,1778553032000,-151.0,0.00017264,2]
[422076517,1778553032000,-151.0,0.00017264,2]
[422076505,1778553032000,-500.0,0.00017264,2]
[422076504,1778553032000,-151.0,0.00017264,2]
[422076507,1778553032000,-500.0,0.00017264,2]
[422076508,1778553032000,-500.0,0.00017264,2]
[422076494,1778553032000,-151.0,0.00017264,2]
[422076506,1778553032000,-151.0,0.00017264,2]
[422076509,1778553032000,-151.0,0.00017264,2]
[422076510,1778553032000,-151.0,0.00017264,2]
[422076497,1778553032000,-500.0,0.00017264,2]
[422076511,1778553032000,-500.0,0.00017264,2]
[422076500,1778553032000,-151.0,0.00017264,2]
[422076515,1778553032000,-500.0,0.00017264,2]
[422076513,1778553032000,-151.0,0.00017264,2]
[422076516,1778553032000,-500.0,0.00017264,2]
[422076514,1778553032000,-151.0,0.00017264,2]
[422076462,1778553032000,-528.94,0.00016863,2]
[422076502,1778553032000,-500.0,0.00017264,2]
[422076481,1778553032000,-151.0,0.00017264,2]
[422076512,1778553032000,-500.0,0.00017264,2]
[422076491,1778553032000,-500.0,0.00017264,2]
[422076473,1778553032000,-151.0,0.00017264,2]
[422076483,1778553032000,-500.0,0.00017264,2]
[422076461,1778553032000,-1342.44,0.000168,2]
[422076470,1778553032000,-500.0,0.00017264,2]
[422076465,1778553032000,-151.0,0.00017264,2]
[422076468,1778553032000,-151.0,0.00017264,2]
[422076464,1778553032000,-200.0,0.00017264,2]
[422076466,1778553032000,-500.0,0.00017264,2]
[422076467,1778553032000,-500.0,0.00017264,2]
[422076463,1778553032000,-162.87,0.00017128,2]
[422076485,1778553032000,-151.0,0.00017264,2]
[422076487,1778553032000,-500.0,0.00017264,2]
[422076474,1778553032000,-500.0,0.00017264,2]
[422076476,1778553032000,-151.0,0.00017264,2]
[422076489,1778553032000,-151.0,0.00017264,2]
[422076479,1778553032000,-500.0,0.00017264,2]
[422076477,1778553032000,-500.0,0.00017264,2]
[422076475,1778553032000,-286.47749038,0.00017264,2]
[422076478,1778553032000,-151.0,0.00017264,2]
[422076536,1778553033000,-528.94,0.00017685,2]
[422076537,1778553033000,-162.87,0.00017724,2]
[422076539,1778553033000,-208.53327574,0.00017812,2]
[422076535,1778553033000,-179.64,0.00017584,2]
[422076540,1778553033000,-350.0,0.00018,2]
[422076541,1778553033000,-528.94,0.00018097,2]
[422076543,1778553033000,-151.28,0.000183,2]
[422076544,1778553033000,-162.87,0.00018319,2]
[422076546,1778553033000,-500.0,0.0001833,2]
[422076545,1778553033000,-201.07212832,0.0001833,2]
[422076534,1778553033000,-500.0,0.00017538,2]
[422076552,1778553033000,-500.0,0.00018358,2]
[422076542,1778553033000,-166.66,0.00018251,2]
[422076533,1778553033000,-528.94,0.00017274,2]
[422076529,1778553033000,-500.0,0.00017264,2]
[422076528,1778553033000,-500.0,0.00017264,2]
[422076523,1778553033000,-153.76414991,0.00017264,2]
[422076531,1778553033000,-1865.36488657,0.00017264,2]
[422076525,1778553033000,-500.0,0.00017264,2]
[422076527,1778553033000,-500.0,0.00017264,2]
[422076530,1778553033000,-500.0,0.00017264,2]
[422076526,1778553033000,-500.0,0.00017264,2]
[422076524,1778553033000,-500.0,0.00017264,2]
[422076519,1778553033000,-500.0,0.00017264,2]
[422076521,1778553033000,-151.0,0.00017264,2]
[422076520,1778553033000,-500.0,0.00017264,2]
[422076518,1778553033000,-151.0,0.00017264,2]
[422076522,1778553033000,-500.0,0.00017264,2]
[422076550,1778553033000,-500.0,0.00018358,2]
[422076532,1778553033000,-500.0,0.00017264,2]
[422076548,1778553033000,-501.35721413,0.00018358,2]
[422076538,1778553033000,-200.0,0.00017812,2]
[422076549,1778553033000,-500.60576138,0.00018358,2]
[422076556,1778553033000,-2000.0,0.0001859,2]
[422076581,1778553033000,-2769.66149264,0.0001939,2]
[422076579,1778553033000,-500.0,0.00018358,2]
[422076577,1778553033000,-500.0,0.00018358,2]
[422076580,1778553033000,-903.35906721,0.0001939,2]
[422076578,1778553033000,-500.0,0.00018358,2]
[422076576,1778553033000,-596.64093279,0.00018358,2]
[422076575,1778553033000,-4438.00906479,0.0001939,2]
[422076573,1778553033000,-500.0,0.00018358,2]
[422076574,1778553033000,-211.59187353,0.0001939,2]
[422076571,1778553033000,-500.0,0.00018358,2]
[422076572,1778553033000,-500.0,0.00018358,2]
[422076570,1778553033000,-500.0,0.00018358,2]
[422076568,1778553033000,-500.0,0.00018358,2]
[422076567,1778553033000,-500.0,0.00018358,2]
[422076569,1778553033000,-500.0,0.00018358,2]
[422076564,1778553033000,-6695.4363559,0.0001939,2]
[422076547,1778553033000,-308.55299093,0.00018358,2]
[422076551,1778553033000,-500.0,0.00018358,2]
[422076566,1778553033000,-500.0,0.00018358,2]
[422076555,1778553033000,-516.5,0.0001841,2]
[422076553,1778553033000,-500.0,0.00018358,2]
[422076557,1778553033000,-166.66,0.00018636,2]
[422076559,1778553033000,-162.87,0.00018914,2]
[422076554,1778553033000,-200.0,0.0001836,2]
[422076563,1778553033000,-500.62640559,0.00019373,2]
[422076560,1778553033000,-166.66,0.0001902,2]
[422076558,1778553033000,-200.0,0.00018908,2]
[422076561,1778553033000,-500.0,0.00019373,2]
[422076565,1778553033000,-36980.72533607,0.0001939,2]
[422076562,1778553033000,-500.0,0.00019373,2]
[422076593,1778553038000,-500.0,0.00018358,2]
[422076595,1778553038000,-307.83825969,0.00018358,2]
[422076592,1778553038000,-500.0,0.00018358,2]
[422076591,1778553038000,-500.0,0.00018358,2]
[422076589,1778553038000,-500.0,0.00018358,2]
[422076588,1778553038000,-500.0,0.00018358,2]
[422076587,1778553038000,-500.0,0.00018358,2]
[422076586,1778553038000,-167.57632766,0.00018358,2]
[422076596,1778553038000,-500.0,0.00018358,2]
[422076590,1778553038000,-500.0,0.00018358,2]
[422076597,1778553038000,-500.0,0.00018358,2]
[422076594,1778553038000,-500.0,0.00018358,2]
[422076600,1778553038000,-500.0,0.00018358,2]
[422076599,1778553038000,-500.0,0.00018358,2]
[422076614,1778553038000,-500.0,0.00018358,2]
[422076608,1778553038000,-500.0,0.00018358,2]
[422076606,1778553038000,-500.0,0.00018358,2]
[422076604,1778553038000,-500.0,0.00018358,2]
[422076611,1778553038000,-500.0,0.00018358,2]
[422076603,1778553038000,-500.0,0.00018358,2]
[422076602,1778553038000,-500.0,0.00018358,2]
[422076601,1778553038000,-500.0,0.00018358,2]
[422076598,1778553038000,-500.0,0.00018358,2]
[422076605,1778553038000,-500.0,0.00018358,2]
[422076652,1778553039000,-500.0,0.00019999,2]
[422076651,1778553039000,-500.0,0.00019999,2]
[422076650,1778553039000,-461.5096691,0.00019999,2]
[422076649,1778553039000,-234.36544948,0.00019999,2]
[422076654,1778553039000,-214.86625456,0.0002,30]
[422076653,1778553039000,-408.2810451,0.00019999,2]
[422076655,1778553039000,-112320.73,0.0002,30]
[422076661,1778553039000,-162.87,0.00020104,2]
[422076658,1778553039000,-838.0,0.0002,2]
[422076657,1778553039000,-870.0,0.0002,2]
[422076659,1778553039000,-500.0,0.00020003,2]
[422076660,1778553039000,-200.0,0.00020004,2]
[422076647,1778553039000,-919.04083002,0.00019921,2]
[422076662,1778553039000,-166.66,0.00020173,2]
[422076663,1778553039000,-536.29533867,0.00020342,2]
[422076667,1778553039000,-2000.0,0.00020656,2]
[422076656,1778553039000,-386.0,0.0002,2]
[422076648,1778553039000,-1000.0,0.00019921,2]
[422076639,1778553039000,-152.0,0.00019647,2]
[422076645,1778553039000,-500.0,0.000199,2]
[422076664,1778553039000,-516.5,0.00020381,2]
[422076625,1778553039000,-500.0,0.00018358,2]
[422076628,1778553039000,-13057.75997329,0.0001929,2]
[422076631,1778553039000,-24879.42174097,0.0001929,2]
[422076617,1778553039000,-500.0,0.00018358,2]
[422076619,1778553039000,-500.0,0.00018358,2]
[422076622,1778553039000,-500.0,0.00018358,2]
[422076633,1778553039000,-236211.98346926,0.0001939,2]
[422076635,1778553039000,-419.75329,0.0001939,2]
[422076636,1778553039000,-166.66,0.00019404,2]
[422076640,1778553039000,-152.0,0.00019647,2]
[422076641,1778553039000,-152.0,0.00019653,2]
[422076638,1778553039000,-162.87,0.00019509,2]
[422076637,1778553039000,-200.0,0.00019456,2]
[422076642,1778553039000,-152.0,0.00019653,2]
[422076643,1778553039000,-152.0,0.00019659,2]
[422076646,1778553039000,-500.0,0.000199,7]
[422076644,1778553039000,-166.66,0.00019788,2]
[422076668,1778553039000,-162.87,0.000207,2]
[422076703,1778553039000,-162.87,0.00023081,2]
[422076671,1778553039000,-200.0,0.000209,7]
[422076691,1778553039000,-355.43,0.00022466,2]
[422076690,1778553039000,-516.5,0.00022353,2]
[422076692,1778553039000,-924.93,0.00022466,2]
[422076693,1778553039000,-162.87,0.00022485,2]
[422076694,1778553039000,-1000.0,0.00022521,2]
[422076696,1778553039000,-2000.0,0.00022721,2]
[422076695,1778553039000,-1000.0,0.00022548,2]
[422076698,1778553039000,-200.0,0.00022744,2]
[422076697,1778553039000,-500.0,0.00022742,2]
[422076700,1778553039000,-386.0,0.00023,2]
[422076699,1778553039000,-190.07781913,0.00022744,2]
[422076707,1778553039000,-150.0,0.00023721,4]
[422076702,1778553039000,-888.73166699,0.00023068,2]
[422076701,1778553039000,-870.0,0.00023,2]
[422076705,1778553039000,-200.0,0.00023292,2]
[422076704,1778553039000,-1500.0,0.00023096,2]
[422076670,1778553039000,-300.0,0.000209,7]
[422076689,1778553039000,-161.95,0.00022253,2]
[422076688,1778553039000,-200.0,0.00022196,2]
[422076706,1778553039000,-2000.0,0.00023644,2]
[422076686,1778553039000,-500.0,0.00022,2]
[422076665,1778553039000,-1500.0,0.00020468,2]
[422076683,1778553039000,-500.0,0.00021973,2]
[422076669,1778553039000,-150.01,0.00020754,2]
[422076672,1778553039000,-386.0,0.00021,2]
[422076674,1778553039000,-488.82693996,0.00021016,2]
[422076678,1778553039000,-317.66,0.00021682,2]
[422076677,1778553039000,-200.0,0.00021648,2]
[422076679,1778553039000,-162.87,0.0002189,2]
[422076666,1778553039000,-200.0,0.00020552,2]
[422076680,1778553039000,-300.0,0.000219,7]
[422076681,1778553039000,-5000.0,0.00021918,2]
[422076675,1778553039000,-200.0,0.000211,2]
[422076676,1778553039000,-162.87,0.00021295,2]
[422076682,1778553039000,-32822.87,0.00021926,30]
[422076684,1778553039000,-4804.98,0.00022,30]
[422076673,1778553039000,-870.0,0.00021,2]
[422076685,1778553039000,-386.0,0.00022,2]
[422076687,1778553039000,-870.0,0.00022,2]
[422076741,1778553040000,-150.0,0.00024101,4]
[422076749,1778553040000,-500.23020647,0.00024173,2]
[422076750,1778553040000,-675.18,0.00024174,2]
[422076744,1778553040000,-150.0,0.00024155,4]
[422076742,1778553040000,-311.0,0.0002411,2]
[422076748,1778553040000,-500.0,0.00024173,2]
[422076739,1778553040000,-150.0,0.00024097,4]
[422076737,1778553040000,-150.0,0.00024074,4]
[422076745,1778553040000,-150.0,0.0002416,4]
[422076738,1778553040000,-171.59043307,0.00024074,2]
[422076743,1778553040000,-150.0,0.00024128,4]
[422076747,1778553040000,-500.58972115,0.00024173,2]
[422076759,1778553040000,-520.09,0.00024174,2]
[422076752,1778553040000,-275.67,0.00024174,2]
[422076762,1778553040000,-503.36256891,0.00024192,2]
[422076757,1778553040000,-4644.21,0.00024174,2]
[422076751,1778553040000,-190.16,0.00024174,2]
[422076756,1778553040000,-150.99,0.00024174,2]
[422076753,1778553040000,-554.35,0.00024174,2]
[422076754,1778553040000,-299.99,0.00024174,7]
[422076761,1778553040000,-150.0,0.00024191,4]
[422076755,1778553040000,-9999.99,0.00024174,2]
[422076760,1778553040000,-150.0,0.00024182,4]
[422076735,1778553040000,-150.0,0.00024019,4]
[422076746,1778553040000,-1545.2,0.00024161,2]
[422076733,1778553040000,-870.0,0.00024,2]
[422076713,1778553040000,-150.0,0.00023721,2]
[422076732,1778553040000,-386.0,0.00024,2]
[422076709,1778553040000,-150.0,0.00023721,2]
[422076708,1778553040000,-249.47580521,0.00023721,2]
[422076710,1778553040000,-150.0,0.00023721,2]
[422076711,1778553040000,-248.12623186,0.00023721,2]
[422076714,1778553040000,-150.40896932,0.00023721,2]
[422076715,1778553040000,-150.0,0.00023721,2]
[422076716,1778553040000,-150.0,0.00023721,2]
[422076712,1778553040000,-150.0,0.00023721,2]
[422076763,1778553040000,-150.0,0.0002421,4]
[422076718,1778553040000,-150.0,0.00023748,4]
[422076717,1778553040000,-150.0,0.00023721,2]
[422076724,1778553040000,-150.0,0.00023856,4]
[422076722,1778553040000,-150.0,0.00023829,4]
[422076725,1778553040000,-150.0,0.00023884,4]
[422076721,1778553040000,-150.0,0.00023815,4]
[422076723,1778553040000,-200.0,0.0002384,2]
[422076720,1778553040000,-150.0,0.00023802,4]
[422076719,1778553040000,-150.0,0.00023775,4]
[422076727,1778553040000,-150.0,0.00023911,4]
[422076729,1778553040000,-150.0,0.0002394,4]
[422076728,1778553040000,-150.0,0.00023938,4]
[422076726,1778553040000,-150.0,0.00023909,4]
[422076736,1778553040000,-150.0,0.00024047,4]
[422076730,1778553040000,-150.0,0.00023965,4]
[422076734,1778553040000,-150.0,0.00024003,4]
[422076731,1778553040000,-150.0,0.00023992,4]
[422076768,1778553040000,-150.0,0.00024291,4]
[422076758,1778553040000,-9999.99,0.00024174,2]
[422076774,1778553040000,-150.0,0.00024379,4]
[422076797,1778553040000,-158.89,0.00024658,2]
[422076799,1778553040000,-161.21,0.00024658,2]
[422076812,1778553040000,-2000.0,0.00024787,2]
[422076802,1778553040000,-412.0,0.00024658,2]
[422076801,1778553040000,-403.0,0.00024658,2]
[422076803,1778553040000,-249.39922294,0.00024658,2]
[422076805,1778553040000,-150.0,0.00024672,4]
[422076804,1778553040000,-150.0,0.00024662,4]
[422076806,1778553040000,-150.0,0.00024699,4]
[422076807,1778553040000,-432.3819205,0.00024721,2]
[422076810,1778553040000,-150.0,0.00024756,4]
[422076808,1778553040000,-150.0,0.00024726,4]
[422076809,1778553040000,-150.0,0.00024753,4]
[422076811,1778553040000,-150.0,0.0002478,4]
[422076814,1778553040000,-150.0,0.00024819,4]
[422076822,1778553040000,-700.0,0.000249,9]
[422076815,1778553040000,-150.0,0.00024835,4]
[422076823,1778553040000,-150.01,0.00024905,2]
[422076813,1778553040000,-150.0,0.00024807,4]
[422076817,1778553040000,-150.0,0.00024862,4]
[422076816,1778553040000,-150.0,0.0002485,4]
[422076821,1778553040000,-500.0,0.000249,9]
[422076820,1778553040000,-700.0,0.000249,9]
[422076818,1778553040000,-150.0,0.00024889,4]
[422076765,1778553040000,-150.0,0.00024264,4]
[422076800,1778553040000,-152.0,0.00024658,2]
[422076798,1778553040000,-161.73,0.00024658,2]
[422076819,1778553040000,-1000.0,0.000249,9]
[422076795,1778553040000,-150.0,0.00024617,4]
[422076794,1778553040000,-167.60019879,0.000246,2]
[422076770,1778553040000,-150.0,0.00024318,4]
[422076764,1778553040000,-150.0,0.00024237,4]
[422076772,1778553040000,-150.0,0.00024345,4]
[422076776,1778553040000,-200.0,0.00024388,2]
[422076771,1778553040000,-516.5,0.00024324,2]
[422076773,1778553040000,-150.0,0.00024373,4]
[422076775,1778553040000,-150.0,0.00024379,4]
[422076778,1778553040000,-214.86625456,0.00024392,2]
[422076788,1778553040000,-150.0,0.00024509,4]
[422076777,1778553040000,-208.2157166,0.00024392,2]
[422076784,1778553040000,-150.0,0.00024454,4]
[422076782,1778553040000,-167.60019879,0.000244,2]
[422076766,1778553040000,-150.0,0.00024285,4]
[422076786,1778553040000,-150.0,0.00024481,4]
[422076780,1778553040000,-503.0,0.00024397,2]
[422076796,1778553040000,-150.0,0.00024644,4]
[422076790,1778553040000,-150.0,0.00024563,4]
[422076793,1778553040000,-150.0,0.00024599,4]
[422076792,1778553040000,-150.0,0.0002459,4]
[422076791,1778553040000,-150.0,0.00024568,4]
[422076785,1778553040000,-150.0,0.00024474,4]
[422076787,1778553040000,-1000.0,0.000245,2]
[422076779,1778553040000,-317.66,0.00024392,2]
[422076781,1778553040000,-150.0,0.000244,4]
[422076783,1778553040000,-150.0,0.00024427,4]
[422076789,1778553040000,-150.0,0.00024536,4]
[422076863,1778553041000,-500.0,0.00025481,2]
[422076862,1778553041000,-150.0,0.00025478,4]
[422076861,1778553041000,-150.0,0.0002546,4]
[422076859,1778553041000,-150.0,0.00025415,4]
[422076851,1778553041000,-150.0,0.00025258,4]
[422076855,1778553041000,-150.0,0.00025324,4]
[422076853,1778553041000,-150.0,0.00025296,4]
[422076857,1778553041000,-150.0,0.00025378,4]
[422076854,1778553041000,-150.0,0.00025321,4]
[422076860,1778553041000,-150.0,0.00025432,4]
[422076864,1778553041000,-209.79200169,0.00025484,2]
[422076871,1778553041000,-150.0,0.00025603,4]
[422076867,1778553041000,-150.0,0.00025514,4]
[422076868,1778553041000,-150.0,0.00025541,4]
[422076865,1778553041000,-150.0,0.00025487,4]
[422076869,1778553041000,-150.0,0.00025568,4]
[422076875,1778553041000,-150.0,0.00025697,4]
[422076872,1778553041000,-150.0,0.00025623,4]
[422076876,1778553041000,-150.0,0.00025697,4]
[422076873,1778553041000,-150.0,0.0002565,4]
[422076874,1778553041000,-150.0,0.00025677,4]
[422076877,1778553041000,-1500.0,0.000257,9]
[422076870,1778553041000,-150.0,0.00025595,4]
[422076850,1778553041000,-419.75329,0.00025252,2]
[422076866,1778553041000,-150.0,0.00025509,4]
[422076856,1778553041000,-150.0,0.00025351,4]
[422076838,1778553041000,-150.0,0.00025052,4]
[422076849,1778553041000,-281515.3303035,0.00025252,2]
[422076878,1778553041000,-1100.0,0.000257,9]
[422076824,1778553041000,-150.0,0.00024916,4]
[422076826,1778553041000,-150.0,0.00024943,4]
[422076825,1778553041000,-200.0,0.00024936,2]
[422076827,1778553041000,-150.0,0.00024944,4]
[422076828,1778553041000,-150.0,0.0002497,4]
[422076829,1778553041000,-150.0,0.00024998,4]
[422076831,1778553041000,-161.73,0.00025,7]
[422076833,1778553041000,-161.21,0.00025,7]
[422076834,1778553041000,-150.0,0.00025025,4]
[422076830,1778553041000,-394.0,0.00025,2]
[422076835,1778553041000,-150.0,0.00025038,4]
[422076832,1778553041000,-884.0,0.00025,2]
[422076836,1778553041000,-150.0,0.00025038,4]
[422076846,1778553041000,-150.0,0.00025227,4]
[422076844,1778553041000,-150.0,0.00025188,4]
[422076843,1778553041000,-150.0,0.00025161,4]
[422076845,1778553041000,-150.0,0.00025215,4]
[422076841,1778553041000,-150.0,0.00025132,4]
[422076839,1778553041000,-150.0,0.00025079,4]
[422076842,1778553041000,-150.0,0.00025133,4]
[422076840,1778553041000,-150.0,0.00025106,4]
[422076848,1778553041000,-6695.4363559,0.00025252,2]
[422076858,1778553041000,-150.0,0.00025405,4]
[422076847,1778553041000,-150.0,0.00025242,4]
[422076852,1778553041000,-150.0,0.00025269,4]
[422076879,1778553041000,-800.0,0.000257,9]
[422076837,1778553041000,-150.0,0.00025038,4]
[422076886,1778553041000,-275.67,0.00025786,2]
[422076911,1778553041000,-326.55,0.00026027,2]
[422076913,1778553041000,-150.0,0.0002603,4]
[422076922,1778553041000,-330.87,0.00026113,2]
[422076923,1778553041000,-326.55,0.00026113,2]
[422076916,1778553041000,-150.0,0.00026057,4]
[422076915,1778553041000,-326.55,0.00026055,7]
[422076919,1778553041000,-326.55,0.00026084,2]
[422076925,1778553041000,-161.21,0.00026136,7]
[422076914,1778553041000,-330.87,0.00026055,7]
[422076921,1778553041000,-150.0,0.00026112,4]
[422076933,1778553041000,-326.55,0.00026171,7]
[422076924,1778553041000,-161.73,0.00026136,7]
[422076926,1778553041000,-150.0,0.00026137,4]
[422076918,1778553041000,-330.87,0.00026084,2]
[422076917,1778553041000,-150.0,0.00026074,4]
[422076920,1778553041000,-150.0,0.00026084,4]
[422076928,1778553041000,-330.87,0.00026142,7]
[422076927,1778553041000,-150.0,0.00026139,4]
[422076931,1778553041000,-150.0,0.00026168,4]
[422076932,1778553041000,-330.87,0.00026171,7]
[422076934,1778553041000,-150.0,0.00026193,4]
[422076935,1778553041000,-330.87,0.000262,2]
[422076929,1778553041000,-326.55,0.00026142,7]
[422076930,1778553041000,-150.0,0.00026166,4]
[422076936,1778553041000,-326.55,0.000262,2]
[422076910,1778553041000,-161.21,0.00026027,2]
[422076912,1778553041000,-254.21,0.00026028,2]
[422076881,1778553041000,-150.0,0.00025731,4]
[422076909,1778553041000,-161.73,0.00026027,2]
[422076885,1778553041000,-190.16,0.00025786,2]
[422076884,1778553041000,-675.18,0.00025786,2]
[422076887,1778553041000,-554.35,0.00025786,2]
[422076888,1778553041000,-150.0,0.00025791,4]
[422076889,1778553041000,-2000.0,0.000258,9]
[422076890,1778553041000,-1400.0,0.000258,9]
[422076891,1778553041000,-1100.0,0.000258,9]
[422076903,1778553041000,-150.0,0.00025921,4]
[422076883,1778553041000,-150.0,0.00025786,4]
[422076882,1778553041000,-150.0,0.00025758,4]
[422076901,1778553041000,-1500.0,0.000259,9]
[422076892,1778553041000,-1100.0,0.000258,9]
[422076902,1778553041000,-150.0,0.00025917,4]
[422076880,1778553041000,-150.0,0.00025704,4]
[422076893,1778553041000,-150.0,0.00025813,4]
[422076900,1778553041000,-1400.0,0.000259,9]
[422076905,1778553041000,-150.0,0.00025976,4]
[422076906,1778553041000,-150.0,0.0002598,4]
[422076908,1778553041000,-330.87,0.00026027,2]
[422076904,1778553041000,-150.0,0.00025949,4]
[422076907,1778553041000,-150.0,0.00026003,4]
[422076897,1778553041000,-150.0,0.00025894,4]
[422076898,1778553041000,-2500.0,0.000259,9]
[422076896,1778553041000,-150.0,0.00025886,4]
[422076895,1778553041000,-150.0,0.00025867,4]
[422076894,1778553041000,-150.0,0.0002584,4]
[422076899,1778553041000,-1800.0,0.000259,9]
[422076972,1778553042000,-326.55,0.00026373,2]
[422076976,1778553042000,-330.87,0.00026431,2]
[422076974,1778553042000,-330.87,0.00026402,7]
[422076975,1778553042000,-326.55,0.00026402,7]
[422076971,1778553042000,-330.87,0.00026373,2]
[422076964,1778553042000,-150.0,0.00026356,4]
[422076969,1778553042000,-158.69225616,0.00026356,4]
[422076968,1778553042000,-150.0,0.00026356,4]
[422076973,1778553042000,-522.58,0.000264,7]
[422076967,1778553042000,-154.09539085,0.00026356,4]
[422076970,1778553042000,-2500000.0,0.0002636,2]
[422076978,1778553042000,-330.87,0.00026459,2]
[422076991,1778553042000,-161.22,0.00026575,30]
[422076982,1778553042000,-330.87,0.00026488,7]
[422076979,1778553042000,-326.55,0.00026459,2]
[422076980,1778553042000,-161.73,0.00026465,7]
[422076984,1778553042000,-330.87,0.00026517,7]
[422076981,1778553042000,-161.21,0.00026465,7]
[422076983,1778553042000,-326.55,0.00026488,7]
[422076985,1778553042000,-326.55,0.00026517,7]
[422076987,1778553042000,-326.55,0.00026546,2]
[422076988,1778553042000,-615.55,0.00026561,7]
[422076986,1778553042000,-330.87,0.00026546,2]
[422076990,1778553042000,-161.74,0.00026575,30]
[422076966,1778553042000,-150.0,0.00026356,4]
[422076977,1778553042000,-326.55,0.00026431,2]
[422076965,1778553042000,-150.0,0.00026356,4]
[422076948,1778553042000,-150.0,0.00026275,4]
[422076957,1778553042000,-330.87,0.00026344,7]
[422076989,1778553042000,-330.89,0.00026575,7]
[422076938,1778553042000,-330.87,0.00026229,7]